bitfinex-derivatives/quotes_SOLF0:USTF0_20250111
["timestamp","ask_amount","ask_price","bid_price","bid_amount"]
[1736629137624,2.6277,190.37,190.32,2.6282]
[1736629138218,11.92489301,190.42,190.29,59.44093511]
[1736629138425,2.6275,190.38,190.34,2.628]
[1736629138729,11.92489301,190.42,190.3,11.92489301]
[1736629140234,11.92489301,190.42,190.29,47.5160421]
[1736629140430,2.6277,190.36,190.29,47.5160421]
[1736629141230,2.6277,190.36,190.32,2.6282]
[1736629141434,2.6272,190.4,190.31,11.92489301]
[1736629141630,11.92489301,190.46,190.34,11.92489301]
[1736629142132,2.627,190.42,190.38,2.6274]
[1736629142331,2.627,190.42,190.34,11.92489301]
[1736629142728,11.92489301,190.46,190.34,11.92489301]
[1736629142926,3.1256,190.48,190.37,11.92489301]
[1736629143232,3.1256,190.48,190.38,11.92489301]
[1736629143733,11.92489301,190.47,190.36,3.248]
[1736629144127,2.6269,190.43,190.38,2.6273]
[1736629144432,11.92489301,190.47,190.36,3.248]
[1736629145233,2.6265,190.46,190.41,2.6269]
[1736629145430,11.92489301,190.47,190.41,2.6269]
[1736629146032,2.6264,190.46,190.41,2.6269]
[1736629147134,3.1256,190.48,190.35,2.6278]
[1736629147135,11.92489301,190.44,190.35,2.6278]
[1736629147327,11.92489301,190.44,190.31,1.4906]
[1736629147632,3.1256,190.48,190.36,11.92489301]
[1736629148428,2.6264,190.46,190.36,11.92489301]
[1736629148630,3.1256,190.48,190.36,11.92489301]
[1736629149433,11.92489301,190.46,190.36,11.92489301]
[1736629149934,2.6269,190.43,190.39,2.6273]
[1736629153535,2.627,190.42,190.37,2.6275]
[1736629154132,2.627,190.42,190.33,11.92489301]
[1736629154630,2.627,190.42,190.35,2.6278]
[1736629154831,2.627,190.42,190.33,11.92489301]
[1736629155227,2.627,190.42,190.38,2.6274]
[1736629155737,2.6275,190.38,190.35,2.6278]
[1736629155940,2.6275,190.38,190.29,11.92489301]
[1736629157027,2.6275,190.38,190.34,2.6279]
[1736629158735,11.92489301,190.43,190.32,11.92489301]
[1736629158934,2.6271,190.41,190.37,2.6275]
[1736629159537,2.6271,190.41,190.38,2.6274]
[1736629160235,13.53539301,190.47,190.39,2.6273]
[1736629161241,13.53539301,190.47,190.4,2.6271]
[1736629161443,1.6105,190.47,190.4,2.6271]
[1736629161842,2.6266,190.45,190.4,2.6271]
[1736629162343,2.6265,190.45,190.4,2.6271]
[1736629164638,1.6105,190.47,190.38,11.92489301]
[1736629164838,2.6267,190.44,190.39,2.6273]
[1736629166437,2.6267,190.44,190.36,1.5823]
[1736629166637,2.6265,190.46,190.42,2.6269]
[1736629166844,2.6265,190.46,190.38,11.92489301]
[1736629167543,2.6265,190.46,190.41,2.6269]
[1736629168239,11.92489301,190.52,190.38,11.92489301]
[1736629168446,1.5067,190.55,190.44,11.92489301]
[1736629168842,2.6258,190.51,190.45,2.6264]
[1736629169042,11.92489301,190.53,190.45,2.6264]
[1736629170338,11.92489301,190.5,190.42,2.6269]
[1736629171043,11.92489301,190.5,190.43,2.6267]
[1736629171044,2.6263,190.47,190.43,2.6267]
[1736629172646,11.92489301,190.5,190.44,2.6266]
[1736629174149,2.6261,190.48,190.44,2.6266]
[1736629180249,2.6265,190.46,190.39,11.92489301]
[1736629181044,11.92489301,190.53,190.44,2.6266]
[1736629181254,11.92489301,190.53,190.42,11.92489301]
[1736629181949,1.5067,190.55,190.42,11.92489301]
[1736629182149,1.5067,190.55,190.45,11.92489301]
[1736629182150,2.6255,190.53,190.45,11.92489301]
[1736629182544,1.5067,190.55,190.45,11.92489301]
[1736629183149,2.6257,190.51,190.47,2.6262]
[1736629183748,2.6258,190.5,190.47,2.6262]
[1736629198766,2.6253,190.54,190.51,2.6256]
[1736629199766,2.6253,190.54,190.5,10.25287731]
[1736629199966,2.6253,190.54,190.5,2.6258]
[1736629200757,2.6255,190.53,190.49,10.25297731]
[1736629201157,2.6249,190.57,190.51,2.6256]
[1736629201362,7.62707731,190.56,190.49,7.62707731]
[1736629201967,4.7053,190.62,190.51,7.62707731]
[1736629202160,4.7053,190.62,190.53,7.62707731]
[1736629202465,2.6245,190.6,190.55,10.25217731]
[1736629202862,7.62707731,190.61,190.55,10.25217731]
[1736629203062,2.6247,190.58,190.55,7.62707731]
[1736629203263,4.7053,190.62,190.55,7.62707731]
[1736629203566,7.62707731,190.61,190.55,7.62707731]
[1736629204162,2.6245,190.6,190.56,2.625]
[1736629204561,2.6245,190.6,190.45,4.6488]
[1736629204761,2.6246,190.59,190.55,7.62707731]
[1736629205066,9.20667731,190.62,190.55,7.62707731]
[1736629205268,2.6246,190.59,190.55,7.62707731]
[1736629205869,7.62707731,190.6,190.45,4.6488]
[1736629206162,7.62707731,190.6,190.53,7.62707731]
[1736629206671,2.6251,190.56,190.53,7.62707731]
[1736629206968,7.62707731,190.6,190.53,7.62707731]
[1736629207172,7.62707731,190.58,190.48,2.6261]
[1736629207467,7.62707731,190.58,190.5,7.62707731]
[1736629207671,7.62707731,190.56,190.47,2.6262]
[1736629207857,7.62707731,190.54,190.45,1.4999]
[1736629208063,7.62707731,190.52,190.39,3.2335]
[1736629208260,7.62707731,190.52,190.44,7.62707731]
[1736629208660,2.6262,190.47,190.44,7.62707731]
[1736629208863,7.62707731,190.47,190.4,1.6205]
[1736629209071,7.62707731,190.47,190.4,9.24757731]
[1736629209265,4.6535,190.51,190.35,7.10616059]
[1736629209266,7.62707731,190.45,190.35,7.10616059]
[1736629209469,7.62707731,190.45,190.38,7.62707731]
[1736629209971,2.6268,190.43,190.38,7.62707731]
[1736629210264,7.62707731,190.43,190.3,44.67635409]
[1736629210465,7.62707731,190.41,190.36,7.62707731]
[1736629210868,5.52,190.5,190.38,7.62707731]
[1736629211072,4.2,190.41,190.4,7.62707731]
[1736629211371,4.2,190.41,190.38,14.55135159]
[1736629211880,2.94,190.4,190.38,14.55135159]
[1736629212069,2.94,190.4,190.39,2.6273]
[1736629212269,2.56412038,190.42,190.38,11.92405159]
[1736629212480,2.6259,190.5,190.41,11.92405159]
[1736629212673,3.1041,190.51,190.43,2.6266]
[1736629213573,7.2941,190.51,190.43,2.6266]
[1736629213872,16.0941,190.51,190.43,2.6266]
[1736629214067,2.6261,190.48,190.43,2.6266]
[1736629214469,6.8161,190.48,190.43,2.6266]
[1736629216069,4.19,190.48,190.38,11.92405159]
[1736629216768,4.19,190.48,190.35,11.92405159]
[1736629216769,11.92405159,190.47,190.35,11.92405159]
[1736629216972,11.92405159,190.47,190.35,2.6278]
[1736629217175,11.92405159,190.47,190.33,11.92405159]
[1736629217769,4.19,190.48,190.36,11.92405159]
[1736629218775,4.19,190.48,190.39,11.92405159]
[1736629219173,4.19,190.48,190.42,11.92405159]
[1736629219678,6.8161,190.48,190.44,2.6266]
[1736629220267,4.19,190.48,190.44,2.6266]
[1736629224166,6.8161,190.48,190.44,2.6266]
[1736629225974,2.6264,190.46,190.41,2.6269]
[1736629226875,2.6262,190.47,190.42,2.6269]
[1736629227275,11.4762,190.47,190.42,2.6269]
[1736629227575,8.85,190.47,190.44,2.6266]
[1736629227875,13.05,190.47,190.44,2.6266]
[1736629229075,13.05,190.47,190.42,11.92405159]
[1736629229076,13.05,190.47,190.46,2.6264]
[1736629231276,13.05,190.47,190.42,11.92405159]
[1736629231577,13.05,190.47,190.43,2.6267]
[1736629232079,13.05,190.47,190.42,2.6269]
[1736629233278,2.6265,190.45,190.42,2.6269]
[1736629235282,2.6264,190.46,190.42,2.6269]
[1736629235677,2.6265,190.45,190.38,17.44405159]
[1736629235976,13.05,190.47,190.38,17.44405159]
[1736629236778,17.25,190.47,190.38,17.44405159]
[1736629237081,2.6265,190.45,190.41,2.627]
[1736629237782,2.6265,190.45,190.42,2.6269]
[1736629238378,2.6265,190.45,190.38,17.44405159]
[1736629238677,2.6265,190.45,190.41,2.627]
[1736629239373,7.63161111,190.46,190.41,2.627]
[1736629239580,7.63161111,190.44,190.38,2.6274]
[1736629239884,15.40161111,190.44,190.39,7.63161111]
[1736629240085,18.02831111,190.44,190.4,2.6272]
[1736629240784,2.6268,190.43,190.39,10.25891111]
[1736629243085,2.6272,190.4,190.31,5.83629949]
[1736629243290,2.6272,190.4,190.36,7.63161111]
[1736629243587,7.63161111,190.42,190.36,7.63161111]
[1736629243788,2.6274,190.39,190.36,7.63161111]
[1736629244487,2.6274,190.39,190.34,10.25951111]
[1736629245389,2.6274,190.39,190.35,2.6278]
[1736629245787,4.8147,190.43,190.34,11.93173924]
[1736629246181,3.165,190.43,190.34,11.93173924]
[1736629246384,1.5403,190.43,190.34,11.93173924]
[1736629246988,1.5403,190.43,190.36,2.6276]
[1736629247182,1.5403,190.43,190.34,11.93173924]
[1736629247388,1.5403,190.43,190.31,5.83629949]
[1736629247590,1.5403,190.43,190.35,2.6278]
[1736629248792,2.6273,190.4,190.35,2.6278]
[1736629249389,2.6273,190.4,190.36,2.6277]
[1736629249589,4.1671,190.43,190.32,11.93173924]
[1736629249788,4.1671,190.43,190.35,11.93173924]
[1736629249987,1.5403,190.43,190.38,2.6274]
[1736629250893,2.6271,190.41,190.35,2.6278]
[1736629251193,1.5403,190.43,190.32,11.93173924]
[1736629252094,2.6273,190.4,190.36,2.6277]
[1736629253792,4.1672,190.43,190.39,2.6273]
[1736629254792,2.6269,190.42,190.39,2.6273]
[1736629255196,2.6269,190.42,190.36,11.93173924]
[1736629255397,2.6269,190.42,190.38,2.6274]
[1736629256103,4.1671,190.43,190.39,2.6273]
[1736629256294,4.1671,190.43,190.36,11.93173924]
[1736629257302,4.1671,190.43,190.38,2.6273]
[1736629259103,7.77,190.44,190.36,11.93173924]
[1736629259296,10.3967,190.44,190.4,2.6272]
[1736629259699,7.77,190.44,190.4,2.6272]
[1736629260209,2.6269,190.43,190.38,2.6273]
[1736629260901,11.3569,190.43,190.38,2.6273]
[1736629261107,8.73,190.43,190.36,11.93173924]
[1736629261809,14.9,190.43,190.41,2.627]
[1736629262911,14.9,190.43,190.36,11.93173924]
[1736629263211,14.9,190.43,190.4,2.6271]
[1736629264013,19.1,190.43,190.4,2.6271]
[1736629264613,19.1,190.43,190.42,2.6269]
[1736629264814,19.1,190.43,190.42,14.55863924]
[1736629265314,19.1,190.43,190.42,10.25570818]
[1736629266018,21.7269,190.43,190.39,7.62880818]
[1736629266315,21.7269,190.43,190.32,5.48]
[1736629266519,19.1,190.43,190.31,12.94246008]
[1736629266817,19.1,190.43,190.37,7.62880818]
[1736629266818,2.6271,190.41,190.37,7.62880818]
[1736629267017,19.1,190.43,190.41,2.6269]
[1736629267220,19.1,190.43,190.41,10.25570818]
[1736629267412,19.1,190.43,190.37,11.92469035]
[1736629267717,19.1,190.43,190.31,11.31629949]
[1736629267916,19.1,190.43,190.34,11.92469035]
[1736629268110,2.6273,190.4,190.36,2.6276]
[1736629268306,19.1,190.43,190.36,2.6276]
[1736629268512,3.1962,190.42,190.36,2.6276]
[1736629269119,2.6273,190.39,190.35,2.6278]
[1736629270317,6.8273,190.39,190.35,2.6278]
[1736629271115,2.6276,190.37,190.33,2.6281]
[1736629271314,4.2,190.39,190.31,5.83629949]
[1736629271914,2.628,190.35,190.31,8.46459949]
[1736629272108,11.92469035,190.37,190.27,0.70977]
[1736629272318,1.5609,190.34,190.27,0.70977]
[1736629272520,2.6284,190.32,190.27,0.70977]
[1736629272913,1.5609,190.34,190.27,0.70977]
[1736629273108,1.5609,190.34,190.27,12.63446035]
[1736629274519,2.6283,190.32,190.27,15.26336035]
[1736629274724,2.6283,190.32,190.27,3.33867]
[1736629275321,2.6283,190.32,190.28,2.6288]
[1736629275917,1.5609,190.34,190.27,0.70977]
[1736629276119,1.5609,190.34,190.27,12.63446035]
[1736629276621,1.5609,190.34,190.32,2.6282]
[1736629276817,4.2,190.39,190.32,2.6282]
[1736629277022,4.2,190.39,190.3,11.92469035]
[1736629277225,6.8275,190.39,190.34,2.628]
[1736629277424,6.8275,190.39,190.3,11.92469035]
[1736629278321,6.8275,190.39,190.34,2.6279]
[1736629279326,4.2,190.39,190.3,11.92469035]
[1736629279623,4.2,190.39,190.33,11.92469035]
[1736629279822,4.2,190.39,190.35,2.6277]
[1736629280024,6.8274,190.39,190.35,2.6277]
[1736629280224,4.2,190.39,190.33,11.92469035]
[1736629280523,2.6275,190.38,190.33,11.92469035]
[1736629281325,6.8273,190.39,190.34,2.628]
[1736629281528,4.2,190.39,190.33,11.92469035]
[1736629282627,4.2,190.39,190.35,2.6278]
[1736629282818,4.2,190.39,190.33,11.92469035]
[1736629283728,4.2,190.39,190.38,2.6275]
[1736629284127,0.3677,190.39,190.38,2.6275]
[1736629284427,8.73,190.43,190.42,2.6269]
[1736629284728,8.73,190.43,190.42,14.55159035]
[1736629285119,1.6324,190.52,190.42,11.92469035]
[1736629285526,1.6324,190.52,190.47,11.92469035]
[1736629285527,5.78,190.52,190.47,11.92469035]
[1736629286029,5.78,190.52,190.48,2.626]
[1736629286226,5.78,190.52,190.47,11.92469035]
[1736629286620,13.72,190.52,190.48,2.6259]
[1736629286832,13.72,190.52,190.47,11.92469035]
[1736629288326,13.72,190.52,190.49,2.6258]
[1736629288925,13.72,190.52,190.5,2.6258]
[1736629289430,13.72,190.52,190.47,11.92469035]
[1736629290531,13.72,190.52,190.51,2.6257]
[1736629294036,13.72,190.52,190.47,11.92469035]
[1736629294233,13.72,190.52,190.49,2.6259]
[1736629295631,13.72,190.52,190.5,2.6258]
[1736629295934,13.72,190.52,190.47,11.92469035]
[1736629296728,13.72,190.52,190.51,2.6257]
[1736629298838,19.97,190.52,190.51,2.6257]
[1736629301643,19.97,190.52,190.49,2.6258]
[1736629303550,19.97,190.52,190.51,2.6257]
[1736629320967,3.1595,190.58,190.49,11.92469035]
[1736629321168,11.92469035,190.65,190.55,11.92469035]
[1736629321369,3.2299,190.64,190.59,7.61673734]
[1736629321670,2.6246,190.59,190.54,7.61673734]
[1736629323169,7.61673734,190.59,190.48,5.42]
[1736629323467,7.61673734,190.57,190.51,7.61673734]
[1736629323670,7.61673734,190.55,190.48,10.24283734]
[1736629323868,2.6255,190.53,190.48,10.24283734]
[1736629324071,2.6255,190.53,190.48,7.61673734]
[1736629324666,2.6255,190.53,190.48,10.24283734]
[1736629325069,7.61673734,190.55,190.5,7.61673734]
[1736629325269,3.2739,190.56,190.47,11.91269377]
[1736629325670,2.6254,190.54,190.49,2.6259]
[1736629326377,3.2739,190.56,190.49,2.6259]
[1736629326973,9.8539,190.56,190.49,2.6259]
[1736629327171,2.6253,190.54,190.5,2.6258]
[1736629327473,9.8539,190.56,190.47,11.91269377]
[1736629328077,12.479,190.56,190.51,2.6256]
[1736629328475,9.8539,190.56,190.51,2.6256]
[1736629328676,2.6251,190.55,190.51,2.6256]
[1736629328878,9.8539,190.56,190.52,2.6254]
[1736629329367,9.8539,190.56,190.5,2.6257]
[1736629329566,9.8539,190.56,190.47,11.91269377]
[1736629330168,2.6253,190.54,190.49,2.6258]
[1736629330676,2.6253,190.54,190.5,2.6257]
[1736629331180,2.6254,190.53,190.5,2.6257]
[1736629332481,11.0654,190.53,190.5,2.6257]
[1736629333276,11.0654,190.53,190.47,11.91269377]
[1736629333277,2.6258,190.5,190.44,11.91269377]
[1736629333483,3.2674,190.49,190.44,11.91269377]
[1736629333981,3.2674,190.49,190.42,2.6269]
[1736629334176,3.2674,190.49,190.42,11.91269377]
[1736629335375,3.2674,190.49,190.42,2.6269]
[1736629335579,3.2674,190.49,190.36,11.91269377]
[1736629335783,11.91269377,190.47,190.36,11.91269377]
[1736629336079,11.91269377,190.47,190.38,2.6274]
[1736629336481,3.2674,190.49,190.4,2.6271]
[1736629336673,3.2674,190.49,190.39,11.91269377]
[1736629337085,2.6265,190.46,190.41,2.627]
[1736629339084,3.2674,190.49,190.41,2.627]
[1736629339279,2.6265,190.45,190.41,2.627]
[1736629340581,3.2674,190.49,190.42,11.91269377]
[1736629340977,3.2674,190.49,190.45,11.91269377]
[1736629341588,1.5357,190.52,190.45,11.91269377]
[1736629342379,2.6258,190.5,190.45,14.53919377]
[1736629342784,2.6258,190.5,190.45,11.91269377]
[1736629343188,2.6258,190.5,190.46,2.6264]
[1736629344389,1.5357,190.52,190.45,11.91269377]
[1736629344591,2.6257,190.51,190.47,2.6262]
[1736629345083,1.5357,190.52,190.47,2.6262]
[1736629346093,2.6258,190.5,190.46,2.6263]
[1736629348882,1.5357,190.52,190.42,11.91269377]
[1736629349087,2.6261,190.48,190.44,2.6266]
[1736629349289,2.6261,190.48,190.44,10.25490457]
[1736629349592,7.62830457,190.51,190.35,5.83526003]
[1736629349892,7.62830457,190.49,190.43,7.62830457]
[1736629350092,3.1344,190.48,190.43,7.62830457]
[1736629350492,2.6263,190.47,190.43,10.25500457]
[1736629352095,11.0263,190.47,190.43,10.25500457]
[1736629355494,8.4,190.47,190.45,7.62830457]
[1736629357096,8.4,190.47,190.46,2.6264]
[1736629359199,8.4,190.47,190.45,2.6265]
[1736629359393,8.4,190.47,190.45,7.62830457]
[1736629360196,8.4,190.47,190.45,10.25480457]
[1736629360698,8.4,190.47,190.46,2.6264]
[1736629361203,8.4,190.47,190.45,10.25480457]
[1736629362092,8.4,190.47,190.44,7.62830457]
[1736629362897,8.4,190.47,190.41,7.62830457]
[1736629363299,11.5104,190.47,190.41,7.62830457]
[1736629364197,2.6265,190.45,190.41,7.62830457]
[1736629364604,2.6265,190.45,190.4,10.25540457]
[1736629365405,2.6265,190.45,190.4,2.6271]
[1736629365800,11.5104,190.47,190.38,11.92320175]
[1736629365999,11.5104,190.47,190.41,2.627]
[1736629366000,2.6264,190.46,190.41,2.627]
[1736629366200,11.5104,190.47,190.41,2.627]
[1736629367104,2.6265,190.45,190.41,2.627]
[1736629369008,3.1104,190.47,190.38,11.92320175]
[1736629369206,1.5357,190.52,190.41,11.92320175]
[1736629369406,1.5357,190.52,190.44,11.92320175]
[1736629370905,8.3157,190.52,190.44,11.92320175]
[1736629371209,2.6259,190.49,190.45,2.6265]
[1736629371406,8.3157,190.52,190.44,11.92320175]
[1736629372207,8.3157,190.52,190.41,11.92320175]
[1736629372612,2.6262,190.48,190.43,2.6267]
[1736629372904,8.3157,190.52,190.43,2.6267]
[1736629373112,8.44,190.48,190.43,2.6267]
[1736629373311,2.6262,190.47,190.43,2.6267]
[1736629377812,8.44,190.48,190.47,2.6262]
[1736629378315,8.44,190.48,190.44,11.92320175]
[1736629378513,8.44,190.48,190.41,11.92320175]
[1736629379014,11.0661,190.48,190.41,11.92320175]
[1736629379318,11.0661,190.48,190.45,2.6265]
[1736629380820,2.6263,190.47,190.4,11.92320175]
[1736629381016,8.44,190.48,190.4,11.92320175]
[1736629381414,2.6265,190.46,190.42,2.6268]
[1736629382416,8.44,190.48,190.42,2.6268]
[1736629382616,2.6265,190.45,190.41,2.627]
[1736629383015,8.44,190.48,190.41,2.627]
[1736629383617,2.6266,190.44,190.41,2.627]
[1736629385020,2.6265,190.45,190.41,2.627]
[1736629385423,2.6265,190.45,190.41,10.25773556]
[1736629385724,2.6262,190.47,190.44,2.6266]
[1736629385918,8.44,190.48,190.45,7.63073556]
[1736629386125,8.44,190.48,190.47,7.63073556]
[1736629386421,8.44,190.48,190.47,10.25693556]
[1736629387210,1.6255,190.58,190.47,7.63073556]
[1736629387211,9.25623556,190.58,190.47,7.63073556]
[1736629387424,6.444e-05,190.48,190.42,5.38]
[1736629387627,2.6249,190.57,190.47,7.63073556]
[1736629387922,2.6249,190.57,190.52,7.63073556]
[1736629388825,9.25623556,190.58,190.52,7.63073556]
[1736629389025,2.625,190.56,190.52,10.25613556]
[1736629389227,1.6255,190.58,190.49,7.63073556]
[1736629389524,13.53867724,190.58,190.46,11.91317724]
[1736629390323,2.6256,190.52,190.47,2.6261]
[1736629390515,2.6256,190.52,190.46,11.91317724]
[1736629390920,2.6254,190.53,190.48,2.6259]
[1736629391421,2.6255,190.52,190.48,2.6259]
[1736629392821,11.91317724,190.55,190.43,11.91317724]
[1736629393028,2.6258,190.5,190.46,2.6262]
[1736629393226,11.91317724,190.55,190.43,11.91317724]
[1736629393421,13.53867724,190.58,190.43,11.91317724]
[1736629393627,2.6256,190.52,190.43,11.91317724]
[1736629394325,13.53867724,190.58,190.43,11.91317724]
[1736629394527,2.6257,190.51,190.47,2.6261]
[1736629395230,13.53867724,190.58,190.43,11.91317724]
[1736629395430,11.91317724,190.54,190.43,11.91317724]
[1736629396125,2.6261,190.48,190.45,2.6265]
[1736629396323,2.6261,190.48,190.4,11.91317724]
[1736629398126,2.626,190.49,190.4,11.91317724]
[1736629398530,11.91317724,190.54,190.4,11.91317724]
[1736629398733,2.6259,190.5,190.45,2.6265]
[1736629399227,2.6259,190.5,190.4,11.91317724]
[1736629399228,2.6257,190.51,190.47,2.6262]
[1736629399427,5.38,190.55,190.43,11.91317724]
[1736629400234,12.55,190.55,190.43,11.91317724]
[1736629400738,2.6255,190.52,190.43,11.91317724]
[1736629401430,2.6255,190.52,190.48,2.6261]
[1736629401935,2.6257,190.51,190.48,2.6261]
[1736629402326,2.6257,190.51,190.47,2.6262]
[1736629402531,2.6258,190.5,190.43,11.91317724]
[1736629403929,12.55,190.55,190.45,2.6265]
[1736629404136,2.626,190.49,190.45,2.6265]
[1736629404432,12.55,190.55,190.43,11.91317724]
[1736629404635,2.626,190.49,190.44,2.6265]
[1736629404835,11.91317724,190.52,190.44,2.6265]
[1736629405030,2.6263,190.47,190.4,11.91317724]
[1736629405237,2.6263,190.47,190.43,2.6267]
[1736629405632,4.6571,190.51,190.46,2.6263]
[1736629405828,4.6571,190.51,190.43,11.91317724]
[1736629406230,7.2828,190.51,190.47,2.6261]
[1736629407834,2.6258,190.5,190.47,2.6261]
[1736629409238,2.6261,190.48,190.36,5.38]
[1736629409539,7.62946281,190.49,190.42,7.62946281]
[1736629409837,2.6263,190.47,190.43,2.6267]
[1736629410638,2.6264,190.46,190.43,2.6267]
[1736629411536,11.92239774,190.5,190.38,11.92239774]
[1736629411744,4.6571,190.51,190.41,11.92239774]
[1736629412342,2.6259,190.49,190.45,2.6264]
[1736629412542,4.6571,190.51,190.41,11.92239774]
[1736629412743,3.1431,190.51,190.41,11.92239774]
[1736629413341,7.3331,190.51,190.41,11.92239774]
[1736629414242,2.6258,190.5,190.46,2.6263]
[1736629415849,2.6259,190.49,190.46,2.6263]
[1736629416450,7.3331,190.51,190.41,11.92239774]
[1736629416649,7.3331,190.51,190.44,2.6265]
[1736629417052,2.6261,190.48,190.44,2.6265]
[1736629417247,2.6261,190.48,190.41,11.92239774]
[1736629417552,8.4,190.48,190.45,2.6265]
[1736629419863,8.4,190.48,190.41,11.92239774]
[1736629420050,8.4,190.48,190.38,11.92239774]
[1736629420853,8.4,190.48,190.42,2.6268]
[1736629421347,11.92239774,190.47,190.35,24.86381836]
[1736629421553,11.92239774,190.47,190.4,2.6272]
[1736629421759,11.92239774,190.47,190.35,17.75765777]
[1736629422160,2.6265,190.45,190.35,17.75765777]
[1736629422755,11.92239774,190.47,190.35,17.75765777]
[1736629423050,8.4,190.48,190.38,11.92239774]
[1736629423763,8.4,190.48,190.41,11.92239774]
[1736629424362,8.4,190.48,190.46,2.6263]
[1736629426362,8.4,190.48,190.43,2.6267]
[1736629426567,8.4,190.48,190.41,11.92239774]
[1736629427158,8.4,190.48,190.46,2.6262]
[1736629428060,15.61,190.48,190.46,2.6262]
[1736629435972,18.2361,190.48,190.45,2.6265]
[1736629436172,25.86465123,190.48,190.45,2.6265]
[1736629437174,25.86465123,190.48,190.44,2.6266]
[1736629437671,25.86465123,190.48,190.41,7.62855123]
[1736629437867,25.86465123,190.48,190.38,2.6273]
[1736629438066,2.6262,190.47,190.41,7.62855123]
[1736629438466,2.6262,190.47,190.44,2.6265]
[1736629439173,25.86465123,190.48,190.44,2.6265]
[1736629439375,25.86465123,190.48,190.35,11.19526003]
[1736629439376,23.23855123,190.48,190.43,7.62855123]
[1736629439568,15.61,190.48,190.47,7.62855123]
[1736629440173,15.61,190.48,190.47,10.25475123]
[1736629443773,2.6249,190.57,190.53,2.6253]
[1736629444070,1.4987,190.58,190.52,7.62855123]
[1736629444372,2.6248,190.57,190.53,2.6253]
[1736629445070,2.6248,190.57,190.4,28.42464238]
[1736629445071,7.62855123,190.57,190.4,28.42464238]
[1736629445271,1.4987,190.58,190.4,36.05319361]
[1736629445483,7.62855123,190.48,190.4,28.42464238]
[1736629445676,7.62855123,190.48,190.43,2.6267]
[1736629446370,3.1785,190.53,190.46,2.6263]
[1736629446680,7.62855123,190.51,190.46,2.6263]
[1736629447669,3.1785,190.53,190.46,7.62855123]
[1736629447670,5.804,190.53,190.46,7.62855123]
[1736629447873,7.62855123,190.56,190.5,7.62855123]
[1736629448372,12.80725123,190.58,190.5,7.62855123]
[1736629448576,3.68,190.58,190.52,7.62855123]
[1736629448777,3.68,190.58,190.54,7.62855123]
[1736629449080,3.68,190.58,190.55,2.6251]
[1736629449474,12.29,190.58,190.54,10.25375123]
[1736629450274,14.9147,190.58,190.54,10.25375123]
[1736629451075,14.9147,190.58,190.54,7.62855123]
[1736629451284,14.9147,190.58,190.53,2.6254]
[1736629452073,12.29,190.58,190.5,11.90779438]
[1736629452282,2.6249,190.57,190.52,2.6255]
[1736629452481,12.29,190.58,190.5,11.90779438]
[1736629454182,2.625,190.56,190.51,2.6256]
[1736629454578,2.6249,190.57,190.5,11.90779438]
[1736629454784,2.6249,190.57,190.52,2.6255]
[1736629455486,2.625,190.56,190.52,2.6255]
[1736629456585,12.255,190.56,190.52,2.6255]
[1736629456781,12.255,190.56,190.51,2.6256]
[1736629458790,9.63,190.56,190.5,11.90779438]
[1736629458987,9.63,190.56,190.52,2.6255]
[1736629459488,9.63,190.56,190.5,11.90779438]
[1736629459489,9.63,190.56,190.54,2.6252]
[1736629461090,9.63,190.56,190.53,11.90779438]
[1736629461285,12.29,190.58,190.53,11.90779438]
[1736629461486,12.29,190.58,190.57,11.90779438]
[1736629461682,12.29,190.58,190.57,14.53259438]
[1736629461888,16.60659438,190.72,190.57,11.90779438]
[1736629462089,4.6988,190.72,190.64,11.90779438]
[1736629462390,3.1117,190.72,190.67,11.90779438]
[1736629462692,10.2217,190.72,190.67,2.6234]
[1736629462881,10.2217,190.72,190.64,11.90779438]